bitfinex/quotes_ETHUSD_20251218
["timestamp","ask_amount","ask_price","bid_price","bid_amount"]
[1766016238782,1.7532,2836.1,2835.0,0.3691]
[1766016239209,1.7532,2836.1,2835.0,0.3711]
[1766016239396,2.0978,2836.1,2835.0,0.3711]
[1766016240204,1.7532,2836.1,2835.0,0.3711]
[1766016240511,1.7532,2836.0,2835.1,0.3691]
[1766016240715,2.0978,2835.9,2835.1,0.3691]
[1766016240885,1.7532,2835.9,2835.1,0.3691]
[1766016241090,2.0978,2835.7,2835.1,0.3691]
[1766016241815,1.7532,2836.0,2835.1,0.3691]
[1766016243332,2.0978,2836.0,2835.1,0.3691]
[1766016244526,1.7532,2835.8,2835.1,0.3691]
[1766016247501,1.7532,2835.6,2835.0,0.002]
[1766016247949,1.7532,2835.6,2835.0,0.3711]
[1766016248110,1.7532,2836.0,2835.0,0.3711]
[1766016248322,1.7532,2835.8,2835.0,0.3711]
[1766016248637,2.0978,2835.8,2835.0,0.3711]
[1766016249005,2.0978,2835.8,2835.1,0.3691]
[1766016249200,2.0978,2835.8,2835.0,0.39185386]
[1766016249413,2.0978,2835.8,2835.0,0.002]
[1766016249615,2.0978,2835.8,2835.0,0.3711]
[1766016249946,2.0978,2835.7,2835.0,0.3711]
[1766016250315,1.7532,2835.7,2835.0,0.3711]
[1766016251413,0.46438023,2836.3,2835.0,0.3711]
[1766016251744,1.5572,2836.0,2835.1,0.3412]
[1766016252041,1.909,2836.0,2835.1,0.3412]
[1766016252840,1.909,2835.9,2835.1,0.3412]
[1766016253355,0.3518,2835.6,2835.0,0.002]
[1766016253546,1.909,2835.5,2835.0,0.3432]
[1766016254224,1.909,2835.8,2835.0,0.3432]
[1766016254434,1.5572,2835.7,2835.0,0.3432]
[1766016254748,1.5572,2835.7,2835.1,0.3412]
[1766016255329,0.1909,2835.8,2835.1,0.3412]
[1766016255935,1.909,2835.7,2835.1,0.3412]
[1766016256116,0.1919,2835.8,2835.0,0.002]
[1766016256117,1.5572,2835.3,2835.0,0.002]
[1766016256315,0.1919,2835.8,2835.0,0.002]
[1766016256316,1.909,2835.2,2835.0,0.002]
[1766016259275,1.5572,2835.2,2835.0,0.002]
[1766016259972,1.909,2835.2,2835.0,0.002]
[1766016260147,1.909,2835.2,2834.5,0.602]
[1766016260667,0.3518,2834.9,2834.5,0.602]
[1766016260868,1.5572,2834.8,2834.5,0.602]
[1766016261182,1.909,2834.9,2834.5,0.9432]
[1766016261351,1.5572,2834.9,2834.5,0.9432]
[1766016262452,1.909,2834.9,2834.5,0.9432]
[1766016262780,1.909,2834.9,2834.5,0.602]
[1766016262955,1.909,2834.9,2834.5,0.9432]
[1766016263160,1.5572,2834.9,2834.5,0.9432]
[1766016264686,1.909,2835.1,2834.5,0.9432]
[1766016267289,1.5572,2835.1,2834.5,0.9432]
[1766016267590,1.5572,2834.9,2834.5,0.9432]
[1766016268090,0.3518,2834.6,2834.4,0.002]
[1766016268398,1.5572,2834.5,2833.9,0.3432]
[1766016269286,0.46438023,2835.1,2833.9,0.3432]
[1766016269287,1.5572,2834.3,2833.9,0.002]
[1766016269481,1.909,2834.2,2833.9,0.002]
[1766016269865,1.5572,2834.3,2833.9,0.3432]
[1766016270065,0.3518,2834.4,2833.9,0.3432]
[1766016270266,1.5572,2834.4,2833.9,0.3432]
[1766016270501,1.909,2834.6,2833.9,0.3432]
[1766016270699,1.5572,2835.1,2834.3,0.3412]
[1766016271001,1.909,2835.1,2834.3,0.3412]
[1766016271896,1.5572,2835.1,2834.6,0.3412]
[1766016272315,1.909,2835.1,2834.6,0.3412]
[1766016272826,1.909,2835.5,2834.6,0.3412]
[1766016272996,1.909,2835.4,2834.6,0.3412]
[1766016273319,6.52471617,2835.8,2834.8,6.11821217]
[1766016273320,0.001,2835.8,2834.8,6.11821217]
[1766016273518,0.001,2835.8,2835.2,0.3412]
[1766016274026,1.5582,2835.8,2835.2,0.3412]
[1766016274315,1.91,2835.8,2835.2,0.3412]
[1766016274490,1.5582,2835.8,2835.2,0.3412]
[1766016274813,0.001,2835.8,2835.2,0.3412]
[1766016275202,1.5582,2835.8,2835.2,0.3412]
[1766016276909,1.909,2835.7,2835.0,0.3412]
[1766016277520,1.5572,2835.7,2835.0,0.3412]
[1766016277716,0.001,2835.8,2835.0,0.3412]
[1766016277888,0.001,2835.8,2835.3,0.3412]
[1766016278089,1.909,2836.5,2835.6,0.3412]
[1766016278296,1.909,2836.5,2835.9,6.45941217]
[1766016278297,1.5572,2836.5,2835.9,6.45941217]
[1766016278608,1.5572,2836.5,2835.9,0.3412]
[1766016278782,1.7483,2836.5,2835.9,0.3412]
[1766016280096,1.5572,2836.4,2835.4,0.3412]
[1766016280702,1.5572,2836.4,2835.5,0.3412]
[1766016281313,1.9265,2836.4,2835.5,0.3412]
[1766016282324,1.9265,2836.4,2835.6,0.3476]
[1766016282624,1.5572,2836.4,2835.6,0.43386012]
[1766016282828,1.5572,2836.4,2835.7,0.3476]
[1766016283399,0.1911,2836.5,2835.7,0.3476]
[1766016284623,0.001,2836.6,2835.8,0.3476]
[1766016285923,0.001,2836.5,2835.8,0.3476]
[1766016287937,1.6431,2836.5,2835.8,0.3476]
[1766016288137,2.0124,2836.5,2835.8,0.3476]
[1766016289039,1.6431,2836.5,2835.8,0.3476]
[1766016289220,1.84454,2836.5,2835.8,0.3476]
[1766016289969,0.20244,2836.5,2835.8,0.3476]
[1766016291230,0.001,2836.5,2835.8,0.3476]
[1766016292054,2.0124,2836.5,2835.8,0.3476]
[1766016294258,2.0114,2836.3,2835.5,0.3476]
[1766016294624,0.3693,2835.8,2835.1,0.3476]
[1766016294858,1.6421,2836.4,2835.2,0.38287088]
[1766016295178,0.20124,2836.3,2835.3,0.3476]
[1766016295750,0.20124,2836.3,2835.4,0.3476]
[1766016298160,0.001,2836.5,2835.4,0.3476]
[1766016298377,0.001,2836.5,2835.5,0.3476]
[1766016298979,1.6421,2836.4,2835.5,0.3476]
[1766016300075,1.6421,2836.4,2835.3,0.38286963]
[1766016300255,1.6421,2836.4,2835.3,0.03526963]
[1766016300460,4e-05,2836.3,2835.4,0.3476]
[1766016300684,0.001,2836.5,2835.6,0.3476]
[1766016300858,0.001,2836.6,2835.6,0.3476]
[1766016301187,1.6431,2836.6,2835.6,0.3476]
[1766016301357,2.0124,2836.6,2835.6,0.3476]
[1766016302081,1.6431,2836.6,2835.7,0.3476]
[1766016302317,0.001,2836.6,2835.9,0.3476]
[1766016302470,0.001,2836.5,2835.9,0.3476]
[1766016304204,0.001,2836.6,2836.0,0.3476]
[1766016304407,0.001,2836.7,2836.0,0.3476]
[1766016304901,0.001,2836.8,2835.9,3.52619352]
[1766016305098,0.001,2836.8,2836.1,0.3476]
[1766016305398,1.6421,2837.2,2836.1,0.3476]
[1766016306473,1.6421,2837.2,2835.9,0.3476]
[1766016306687,1.6421,2837.2,2836.0,0.3476]
[1766016307099,1.6421,2837.2,2836.2,0.3476]
[1766016307274,0.46438023,2837.5,2836.1,3.52595121]
[1766016307275,2.047604,2837.5,2836.4,0.3476]
[1766016307794,2.416904,2837.5,2836.4,0.3476]
[1766016307996,2.0114,2837.4,2836.4,0.3476]
[1766016310405,0.001,2837.0,2836.4,0.3476]
[1766016311507,1.5491,2837.0,2836.4,0.74243614]
[1766016311702,1.5491,2837.0,2836.4,0.3551]
[1766016311703,1.9108,2837.0,2836.4,0.3551]
[1766016312700,1.5491,2837.0,2836.4,0.3551]
[1766016312876,1.5481,2836.8,2836.4,0.3551]
[1766016313486,1.9098,2836.8,2836.0,0.002]
[1766016313672,0.001,2837.0,2836.0,0.39034158]
[1766016313894,1.5481,2837.5,2836.2,0.3551]
[1766016314093,1.5481,2837.3,2836.4,0.3551]
[1766016314294,0.3617,2837.4,2836.1,0.3551]
[1766016314295,1.9098,2836.9,2836.1,0.3551]
[1766016315209,1.9098,2836.7,2836.1,0.3551]
[1766016315707,0.3617,2836.6,2836.0,0.002]
[1766016315877,1.9098,2836.6,2836.0,0.002]
[1766016316911,1.5481,2836.6,2836.0,0.002]
[1766016317211,1.5481,2836.6,2836.0,0.3571]
[1766016317595,1.9098,2836.8,2836.0,0.3571]
[1766016317795,1.9098,2836.8,2836.2,0.3551]
[1766016318207,1.9098,2836.8,2836.1,0.38833023]
[1766016318520,1.5481,2836.8,2836.2,0.3551]
[1766016318825,1.9108,2837.0,2836.2,0.3551]
[1766016319024,1.9098,2836.8,2836.2,0.3551]
[1766016319397,1.5481,2836.8,2836.2,0.3551]
[1766016320020,1.9098,2836.8,2836.0,0.3571]
[1766016320200,1.5481,2836.6,2836.0,0.3571]
[1766016321545,1.9098,2836.6,2836.0,0.3571]
[1766016322429,1.5481,2836.4,2836.0,0.002]
[1766016322630,0.19098,2836.6,2836.0,0.002]
[1766016322631,1.5481,2836.2,2836.0,0.002]
[1766016322834,1.9098,2836.2,2836.0,0.002]
[1766016323344,1.9098,2836.4,2836.0,0.002]
[1766016323838,1.5481,2836.2,2836.0,0.002]
[1766016324325,1.9098,2836.2,2835.6,0.3551]
[1766016324717,1.9098,2836.2,2835.3,0.3551]
[1766016324718,0.3617,2836.1,2835.3,0.3551]
[1766016325024,0.3617,2836.1,2835.5,0.3551]
[1766016325025,1.9098,2836.1,2835.5,0.3551]
[1766016325524,0.001,2837.0,2835.5,0.3551]
[1766016325525,1.9098,2836.4,2835.5,0.3551]
[1766016325724,1.9098,2836.4,2835.7,0.3551]
[1766016326100,1.5481,2836.4,2835.7,0.3551]
[1766016327507,1.5481,2836.2,2835.7,0.3551]
[1766016327699,1.9098,2836.2,2835.4,0.3551]
[1766016327905,1.9098,2836.2,2835.5,0.3551]
[1766016328230,1.9098,2836.2,2835.6,0.74329185]
[1766016328829,1.5481,2836.2,2835.6,0.3551]
[1766016329003,1.5481,2836.4,2835.6,0.3551]
[1766016330228,1.9098,2836.4,2835.6,0.3551]
[1766016330425,1.5481,2836.4,2835.6,0.3551]
[1766016330936,1.9098,2836.4,2835.6,0.3551]
[1766016331435,1.9098,2836.4,2835.7,0.3551]
[1766016331629,1.9098,2836.4,2835.6,0.3881861]
[1766016331808,1.5481,2836.4,2835.6,0.3881861]
[1766016332010,1.5481,2836.2,2835.6,0.3881861]
[1766016332205,1.5481,2836.2,2835.5,0.3571]
[1766016333228,1.9098,2836.2,2835.5,0.3571]
[1766016333407,1.9098,2836.1,2835.5,0.3571]
[1766016333910,1.9098,2835.9,2835.5,0.002]
[1766016334110,0.19098,2835.9,2835.6,0.3551]
[1766016334417,1.5481,2836.2,2835.6,0.3551]
[1766016334623,1.9098,2836.2,2835.6,0.3551]
[1766016334816,1.5481,2836.2,2835.5,0.002]
[1766016335008,1.9098,2836.0,2835.5,0.002]
[1766016335209,1.9098,2836.0,2835.5,0.3571]
[1766016336316,4.39492505,2836.9,2835.5,0.3571]
[1766016336317,0.405504,2836.7,2835.5,0.3571]
[1766016336534,1.9098,2836.2,2835.5,0.3571]
[1766016336839,1.73908,2836.1,2835.5,0.3571]
[1766016337029,1.9098,2836.1,2835.5,0.3571]
[1766016338233,1.5481,2836.1,2835.5,0.3571]
[1766016338431,1.5481,2836.4,2835.5,0.3571]
[1766016338637,1.9098,2836.4,2835.5,0.3571]
[1766016338829,1.5481,2836.4,2835.6,0.3551]
[1766016339028,1.5481,2836.2,2835.6,0.3551]
[1766016342368,1.6092,2836.6,2835.8,0.3595]
[1766016342558,1.6092,2836.6,2835.6,3.52657447]
[1766016342559,1.80673,2836.6,2836.0,0.3595]
[1766016343046,2.17283,2836.6,2836.0,0.3595]
[1766016343243,1.6092,2836.4,2836.0,0.3595]
[1766016343445,0.3661,2836.7,2836.0,0.3595]
[1766016343682,1.6092,2836.6,2836.0,0.3595]
[1766016344970,1.6092,2836.9,2836.0,0.3615]
[1766016345173,1.6092,2836.7,2836.0,0.3615]
[1766016345376,1.9753,2836.5,2836.0,0.3615]
[1766016345675,1.9753,2836.3,2836.0,0.002]
[1766016345860,1.6092,2836.3,2836.0,0.002]
[1766016346053,1.6092,2836.3,2836.0,0.3615]
[1766016346780,1.6092,2836.3,2836.0,0.002]
[1766016347550,1.9753,2836.2,2836.0,0.002]
[1766016347755,0.19753,2836.3,2836.0,0.002]
[1766016347756,1.9753,2836.1,2836.0,0.002]
[1766016348366,1.9753,2836.1,2835.5,0.3615]
[1766016348572,0.3661,2836.0,2835.5,0.002]
[1766016348774,1.9753,2835.9,2835.5,0.002]
[1766016349574,1.9753,2835.9,2835.5,0.3615]
[1766016349778,1.80673,2835.9,2835.5,0.3615]
[1766016349975,1.6092,2836.2,2835.5,0.3615]
[1766016350366,1.9753,2836.4,2835.6,0.0352659]
[1766016350672,1.9753,2836.4,2835.6,0.3595]
[1766016352890,1.9753,2836.2,2835.6,0.3595]
[1766016353086,1.6092,2836.1,2835.5,0.002]
[1766016353259,1.9753,2835.7,2834.9,0.002]
[1766016353473,1.9753,2835.5,2834.9,0.002]
[1766016353666,1.9753,2835.5,2834.9,0.3615]
[1766016354463,1.9753,2835.5,2834.9,0.002]
[1766016354792,1.9753,2835.3,2834.9,0.002]
[1766016354996,0.19753,2835.2,2834.9,0.002]
[1766016355193,1.6092,2835.1,2834.9,0.002]
[1766016355392,6.11569332,2836.1,2834.5,0.002]
[1766016355393,1.6092,2834.9,2834.5,0.002]
[1766016355695,1.9753,2834.9,2834.5,0.002]
[1766016355899,1.6092,2834.9,2834.5,0.002]
[1766016356098,1.9753,2834.9,2834.5,0.002]
[1766016356300,0.19753,2834.9,2834.5,0.002]
[1766016356501,1.6092,2834.6,2834.4,0.002]
[1766016356798,1.9753,2834.6,2834.4,0.002]
[1766016357570,1.6092,2834.6,2834.4,0.002]
[1766016357999,1.9753,2834.6,2834.4,0.002]
[1766016358207,1.6092,2834.4,2834.3,0.002]
[1766016358779,1.6092,2834.4,2834.1,0.6]
[1766016360405,1.6092,2834.3,2834.1,0.6]
[1766016360700,1.9753,2834.1,2833.8,0.002]
[1766016360903,0.19753,2834.4,2833.7,0.002]
[1766016361104,0.19753,2834.4,2833.7,0.3615]
[1766016361304,0.19753,2834.4,2833.4,0.002]
[1766016361305,1.6092,2833.9,2833.4,0.002]
[1766016361505,1.9753,2833.7,2833.4,0.002]
[1766016361680,1.9753,2834.0,2833.4,0.002]
[1766016362307,1.9753,2834.0,2833.4,0.3615]
[1766016362725,1.6092,2834.0,2833.4,0.3615]
[1766016363323,1.9753,2834.2,2833.4,0.3615]
[1766016363937,1.9753,2834.2,2833.5,0.3595]
[1766016364722,0.46438023,2834.6,2833.5,0.3595]
[1766016364723,0.3661,2834.6,2833.5,0.3595]
[1766016364905,1.6092,2834.5,2833.5,0.3595]
[1766016365316,1.9753,2834.5,2833.5,0.3595]
[1766016365504,1.9753,2834.4,2833.5,0.3595]
[1766016366024,1.6092,2834.4,2833.5,0.78771952]
[1766016366195,1.6092,2834.2,2833.5,0.3595]
[1766016366821,1.9753,2834.2,2833.5,0.3595]
[1766016367331,1.9753,2834.2,2833.4,0.002]
[1766016367516,1.9753,2834.2,2833.5,0.3595]
[1766016368596,0.405504,2834.7,2833.5,0.3595]
[1766016368796,0.3661,2834.3,2833.5,0.3595]
[1766016369022,1.6092,2834.2,2833.5,0.3595]
[1766016369234,1.9753,2834.0,2833.5,0.3595]
[1766016369724,1.9753,2834.0,2833.5,0.3615]
[1766016369893,1.9753,2834.0,2833.5,0.002]
[1766016370900,1.6116,2834.2,2833.6,0.3684]
[1766016371335,2.15754,2834.2,2833.6,0.3684]
[1766016372204,2.15754,2834.2,2833.6,0.3684]
[1766016372418,1.6106,2834.1,2833.6,0.3684]
[1766016372629,1.6106,2834.1,2833.5,0.002]
[1766016372630,1.9604,2834.1,2833.5,0.002]
[1766016372825,1.9604,2834.1,2833.5,0.3704]
[1766016373802,2.176154,2834.1,2833.5,0.3704]
[1766016374000,0.215754,2834.1,2833.5,0.3704]
[1766016374331,0.001,2834.2,2833.5,0.3704]
[1766016374716,1.6116,2834.2,2833.5,0.3704]
[1766016375030,1.9614,2834.2,2833.5,0.3704]
[1766016375218,1.6106,2833.8,2833.5,0.002]
[1766016375727,1.9604,2833.8,2833.5,0.002]
[1766016375934,1.6106,2833.7,2833.4,0.002]
[1766016376109,1.9604,2833.5,2833.1,0.002]
[1766016376308,0.46438023,2834.1,2832.8,1.1894]
[1766016376309,1.9604,2833.3,2832.8,1.1894]
[1766016376510,1.9604,2833.1,2832.8,1.1894]
[1766016376732,1.6106,2833.7,2832.8,1.5578]
[1766016376931,1.6106,2833.5,2832.9,0.3684]
[1766016378335,1.9604,2833.6,2832.9,0.3684]
[1766016378534,0.3498,2833.3,2832.8,1.1894]
[1766016378842,0.44085259,2834.0,2832.8,1.1894]
[1766016378843,1.9604,2833.1,2832.8,1.1894]
[1766016379037,1.80664,2833.0,2832.8,1.1894]
[1766016379238,1.6106,2833.0,2832.8,1.1894]
[1766016379639,0.90523282,2834.0,2832.6,0.6]
[1766016379962,1.6106,2833.4,2832.6,0.9684]
[1766016380165,1.9604,2833.3,2832.6,0.9684]
[1766016380359,1.6106,2833.2,2832.6,0.9684]
[1766016380563,1.9604,2833.2,2832.6,0.9684]
[1766016380762,0.3498,2832.9,2832.6,0.6]
[1766016380941,1.6106,2833.7,2832.6,0.6]
[1766016381160,0.405504,2833.6,2832.6,0.6]
[1766016381462,0.3498,2833.0,2832.6,0.6]
[1766016381665,1.6106,2832.9,2832.6,0.6]
[1766016382647,1.6106,2833.2,2832.6,0.6]
[1766016382857,1.9604,2833.2,2832.6,0.6]
[1766016383167,2.15644,2833.2,2832.6,0.6]
[1766016383367,1.6106,2833.1,2832.6,0.6]
[1766016383573,1.9604,2833.1,2832.6,0.6]
[1766016383868,0.19604,2833.2,2832.6,0.6]
[1766016384370,0.405504,2833.6,2832.6,0.6]
[1766016384371,0.3498,2833.6,2832.8,6.12994014]
[1766016384554,0.3498,2833.6,2832.7,6.12994014]
[1766016384755,1.6106,2833.4,2832.8,1.1067]
[1766016385072,1.6106,2833.4,2832.8,1.4751]
[1766016385073,1.9604,2833.4,2832.8,1.4751]
[1766016385369,1.9604,2833.9,2833.1,6.12994014]
[1766016385546,1.6106,2834.1,2833.2,0.3684]
[1766016386137,1.9614,2834.2,2833.2,0.3684]
[1766016386332,0.001,2833.6,2833.3,1.1109]
[1766016386551,1.9614,2834.2,2833.5,0.3684]
[1766016386844,1.9614,2834.2,2833.2,3.52956811]
[1766016387051,1.9614,2834.2,2833.3,1.4803]
[1766016387250,1.9614,2834.2,2833.4,0.3684]
[1766016388169,1.9614,2834.2,2833.4,1.1139]
[1766016388365,1.9614,2834.2,2833.5,0.3684]
[1766016388702,0.001,2834.2,2834.0,0.3684]
[1766016388868,0.001,2834.2,2833.4,3.99365859]
[1766016389567,0.001,2834.2,2833.5,1.1159]
[1766016389869,0.001,2834.2,2833.9,0.3684]
[1766016390068,0.001,2834.2,2833.9,1.4843]
[1766016390878,0.001,2834.8,2833.9,1.4843]
[1766016391171,0.001,2834.8,2834.2,0.3684]
[1766016391471,1.9614,2834.8,2834.2,0.3684]
[1766016391667,2.15754,2834.8,2834.2,0.3684]
[1766016392068,1.9604,2834.7,2833.9,3.52864211]
[1766016392365,1.9604,2834.7,2834.0,0.3684]
[1766016393192,1.9604,2834.7,2834.0,1.1226]
[1766016393388,0.19714,2834.8,2833.4,3.52930122]
[1766016393389,0.3498,2834.6,2833.4,3.52930122]
[1766016393691,0.3498,2834.4,2833.8,0.3684]
[1766016393994,0.001,2834.8,2833.5,0.83278023]
[1766016393995,1.9604,2834.1,2833.5,0.83278023]
[1766016395089,1.9604,2834.1,2833.3,0.3684]
[1766016395306,0.19604,2834.1,2833.5,1.1264]
[1766016395490,1.6106,2834.3,2833.7,1.4948]
[1766016396667,1.6106,2834.3,2833.7,0.3684]
[1766016396867,0.3498,2834.1,2833.4,0.84975754]
[1766016397066,1.6106,2834.2,2833.6,1.4985]
[1766016397303,1.80664,2834.2,2833.6,1.4985]
[1766016397603,1.80664,2834.2,2833.7,0.3684]
[1766016398095,1.6116,2834.7,2834.0,0.3684]
[1766016398298,1.6116,2834.7,2834.0,1.5003]
[1766016398603,1.6116,2834.7,2834.1,0.3684]
[1766016399388,1.9614,2834.7,2834.1,0.3684]
[1766016399597,0.19624,2834.6,2834.1,0.3684]
[1766016399764,0.19624,2834.6,2834.2,0.3684]
[1766016400405,0.19624,2834.6,2833.8,1.5038]
[1766016400590,0.19624,2834.6,2833.9,1.1354]
[1766016400907,0.19624,2834.6,2834.0,0.3684]
[1766016401111,1.84334,2834.6,2834.0,0.3684]
[1766016401418,2.215324,2834.5,2834.0,0.3684]
[1766016403011,0.219324,2834.5,2833.7,0.3579]
[1766016403211,1.6471,2834.5,2833.8,1.5001]
[1766016403417,1.6471,2834.5,2833.8,1.719424]
[1766016403880,1.996,2834.5,2833.8,1.719424]
[1766016404606,0.001,2834.7,2833.8,0.577224]
[1766016404607,1.996,2834.3,2833.8,0.577224]
[1766016404812,1.6471,2834.3,2833.8,1.363124]
[1766016404995,0.3489,2834.5,2833.9,0.3579]
[1766016405202,1.996,2834.5,2833.9,0.3579]
[1766016405377,2.1958,2834.5,2833.9,0.3579]
[1766016405582,1.996,2834.4,2833.8,1.363124]
[1766016405786,1.996,2834.4,2833.8,1.721024]
[1766016406097,1.996,2834.4,2833.8,0.219324]
[1766016406413,1.86678,2834.4,2833.8,1.366424]
[1766016406585,1.6471,2834.4,2834.0,0.3579]
[1766016407094,0.001,2834.6,2833.8,0.577224]
[1766016407404,0.001,2834.6,2833.6,0.002]
[1766016407405,0.001,2834.6,2834.0,0.3579]
[1766016407631,0.2009,2834.6,2834.3,0.3579]
[1766016407836,0.001,2834.6,2834.3,0.3579]
[1766016409548,1.996,2835.6,2835.0,0.3579]
[1766016409845,1.996,2835.6,2834.9,7.27152019]
[1766016410040,1.6481,2835.4,2834.9,7.62942019]
[1766016410210,1.997,2835.4,2834.9,7.62942019]
[1766016410413,1.997,2835.4,2834.9,6.48062019]
[1766016410942,0.001,2835.4,2834.9,6.12272019]
[1766016411147,0.001,2835.4,2835.1,0.3579]
[1766016411341,1.6471,2835.7,2835.1,1.5097]
[1766016411543,0.1996,2835.6,2834.3,1.5087]
[1766016411746,0.1996,2835.6,2834.5,3.52788944]
[1766016411921,0.1996,2835.6,2834.8,1.1508]
[1766016412118,0.21956,2835.5,2835.0,1.1523]
[1766016412319,0.21956,2835.5,2835.2,0.3579]
[1766016412633,0.601,2835.9,2835.3,0.3579]
[1766016413143,0.601,2835.9,2835.4,0.3579]
[1766016413144,0.001,2835.7,2835.4,0.3579]
[1766016413357,0.601,2835.9,2835.0,0.9335]
[1766016413557,2.2481,2835.9,2835.2,0.3579]
[1766016413730,2.71248023,2835.9,2835.2,0.3579]
[1766016414053,0.601,2835.9,2835.5,0.3579]
[1766016414227,0.601,2835.9,2835.6,0.3579]
[1766016414429,0.601,2835.9,2835.7,0.3579]
[1766016414821,0.001,2836.0,2835.7,0.3342]
[1766016415042,1.6471,2836.3,2835.8,0.3579]
[1766016415248,1.8469,2836.3,2835.8,0.3579]
[1766016415559,2.1958,2836.3,2835.8,0.3579]
[1766016415876,2.1958,2836.3,2835.2,3.52705337]
[1766016415877,0.1998,2836.3,2835.3,7.05383205]
[1766016416039,0.001,2836.4,2835.3,3.52686842]
[1766016416248,0.001,2836.4,2835.4,0.6969]
[1766016416477,0.001,2836.4,2835.3,3.52686842]
[1766016416768,0.001,2836.4,2835.3,7.05383205]
[1766016417145,0.001,2836.4,2835.3,3.56576242]
[1766016417376,0.001,2836.4,2835.6,0.3579]
[1766016417574,0.001,2836.4,2835.8,0.3579]
[1766016418484,0.48135754,2837.1,2835.7,8.48490663]
[1766016418805,1.997,2837.0,2835.9,0.3579]
[1766016419079,1.6481,2836.9,2835.8,0.94573777]
[1766016419285,1.6481,2836.9,2835.9,1.29570524]
[1766016419683,1.6481,2836.9,2836.0,0.7018]
[1766016419970,1.996,2836.8,2836.1,0.3579]
[1766016420178,0.3489,2836.4,2835.3,0.3579]
[1766016420369,1.6471,2835.9,2835.3,0.3579]
[1766016420570,1.6471,2835.9,2835.3,0.7068]
[1766016420771,1.6471,2835.9,2835.3,0.3579]
[1766016420978,1.6471,2835.7,2835.0,0.3579]
[1766016421148,1.6471,2835.5,2834.8,0.3483]
[1766016421354,1.6471,2835.5,2834.8,0.7062]
[1766016421666,1.6471,2835.1,2833.7,0.3579]
[1766016421963,0.3489,2834.8,2833.5,0.46438023]
[1766016422175,0.3489,2834.7,2833.6,0.3599]
[1766016422383,1.6471,2834.6,2833.6,0.3599]
[1766016422610,1.996,2834.4,2833.6,0.3599]
[1766016423106,0.3489,2834.8,2833.6,0.7134]
[1766016423289,1.6471,2834.7,2833.8,0.3579]
[1766016423485,0.3489,2834.8,2834.0,0.3579]
[1766016423685,1.996,2835.0,2834.1,0.3579]
[1766016423919,3.99123113,2835.4,2834.0,0.7114]
[1766016423920,1.996,2835.3,2834.0,0.7114]
[1766016424117,1.996,2835.3,2834.4,0.3579]
[1766016424421,2.401504,2835.6,2834.7,0.3579]
[1766016424721,1.996,2835.6,2834.7,0.3579]
[1766016424879,1.996,2836.0,2835.0,0.714]
[1766016425207,1.996,2836.0,2835.3,0.3579]
[1766016425382,1.6471,2836.0,2835.3,0.3579]
[1766016426330,1.6471,2835.8,2835.0,0.3579]
[1766016426489,1.6471,2835.8,2835.0,1.32916646]
[1766016426686,1.6471,2835.8,2834.9,0.46438023]
[1766016427007,1.6471,2835.8,2835.1,0.3579]
[1766016428112,1.6481,2835.8,2835.1,0.3579]
[1766016428313,0.001,2835.8,2835.1,0.7239]
[1766016428490,0.001,2835.8,2835.3,0.3579]
[1766016428695,0.001,2835.8,2835.5,0.3579]
[1766016429125,0.001,2835.8,2835.2,0.3579]
[1766016429485,1.6481,2835.8,2835.0,0.3599]
[1766016430011,1.997,2835.8,2835.0,0.8677223]
[1766016430227,2.001,2835.4,2835.0,0.002]
[1766016430594,1.6471,2835.4,2835.0,0.002]
[1766016430795,0.3539,2835.7,2835.0,0.002]
[1766016431029,1.9502,2835.6,2835.0,0.002]
[1766016431627,1.596,2835.6,2835.0,0.3702]
[1766016431923,0.2006,2835.7,2835.4,0.3682]
[1766016432094,1.596,2836.1,2835.4,0.3682]
[1766016432294,1.596,2836.1,2835.5,0.3682]
[1766016432938,0.81858023,2836.3,2835.7,0.3682]
[1766016432939,0.405504,2836.3,2835.7,0.3682]
[1766016433141,0.405504,2836.4,2835.8,0.3682]
[1766016433933,0.3542,2836.0,2835.0,0.3702]
[1766016434138,1.596,2835.7,2835.0,0.3702]
[1766016434325,0.3542,2835.8,2835.1,0.3682]
[1766016434522,1.596,2836.0,2835.2,0.3682]
[1766016434706,1.596,2836.0,2835.3,0.3682]
[1766016436635,1.9502,2835.8,2835.0,0.3702]
[1766016437337,1.596,2835.8,2835.1,0.3682]
[1766016438550,1.596,2835.8,2835.1,0.83275363]
[1766016439134,1.9502,2835.8,2835.1,0.3682]
[1766016439529,1.596,2835.6,2835.0,0.002]
[1766016439741,1.9502,2835.6,2835.0,0.002]
[1766016440251,1.596,2836.0,2835.3,0.3682]
[1766016440437,0.001,2836.1,2835.4,0.3682]
[1766016440640,0.001,2836.1,2835.0,0.03727336]
[1766016440641,0.24007429,2836.1,2835.2,0.03527088]
[1766016440841,1.9502,2836.0,2835.0,0.002]
[1766016442456,1.9502,2835.9,2835.0,0.3702]
[1766016442635,1.9502,2835.8,2835.0,0.3702]
[1766016442837,2.14522,2835.8,2835.0,0.3702]
[1766016443031,0.54922,2835.8,2835.0,0.3702]